fUST/lending_fUST_20250201
["ID","MTS","AMOUNT","RATE_DAILY","PERIOD"]
[351148874,1738355449515,-500.0,0.00018221,2]
[351148875,1738355449525,-3595.47,0.00018221,2]
[351148876,1738355449535,-570.52,0.00018221,2]
[351148877,1738355449545,-500.0,0.00018221,2]
[351148878,1738355449554,-500.0,0.00018221,2]
[351148879,1738355449564,-500.0,0.00018222,2]
[351148880,1738355449574,-190.412,0.0001829,2]
[351148881,1738355449584,-500.0,0.00018356,2]
[351148882,1738355449596,-754.35,0.00018356,2]
[351148883,1738355449606,-500.0,0.00018357,2]
[351148884,1738355449615,-500.0,0.00018357,2]
[351148885,1738355449624,-169.68,0.00018357,2]
[351148886,1738355449634,-372.3421,0.00018357,2]
[351148887,1738355449643,-372.3421,0.00018357,2]
[351148888,1738355449653,-640.56,0.00018357,2]
[351148889,1738355449662,-500.0,0.00018357,2]
[351148890,1738355449671,-519.66,0.00018357,2]
[351148891,1738355449681,-500.0,0.00018357,2]
[351148892,1738355449691,-500.0,0.00018357,2]
[351148893,1738355449700,-500.0,0.00018357,2]
[351148894,1738355449709,-359.28,0.00018357,2]
[351148895,1738355449719,-571.59,0.00018357,2]
[351148896,1738355449728,-500.0,0.00018357,2]
[351148897,1738355449737,-546.31,0.00018357,2]
[351148898,1738355449746,-848.27,0.00018357,2]
[351148899,1738355449756,-793.44,0.00018357,2]
[351148900,1738355449764,-500.0,0.00018357,2]
[351148901,1738355449773,-800.64,0.00018357,2]
[351148902,1738355449782,-500.0,0.00018357,2]
[351148903,1738355449792,-500.0,0.00018357,2]
[351148904,1738355449801,-2583.75,0.00018357,2]
[351148905,1738355449813,-688.18,0.00018357,2]
[351148906,1738355449823,-500.0,0.00018357,2]
[351148907,1738355449832,-500.0,0.00018357,2]
[351148908,1738355449841,-500.0,0.00018358,2]
[351148909,1738355449854,-500.0,0.00018358,2]
[351148910,1738355449863,-500.0,0.00018358,2]
[351148911,1738355449872,-372.3421,0.00018358,2]
[351148912,1738355449880,-372.3421,0.00018358,2]
[351148913,1738355449890,-2948.34,0.00018358,2]
[351148914,1738355449900,-3595.47,0.00018358,2]
[351148915,1738355449909,-570.52,0.00018358,2]
[351148916,1738355449918,-500.0,0.00018358,2]
[351148917,1738355449927,-500.0,0.00018358,2]
[351148918,1738355449936,-500.0,0.00018358,2]
[351148919,1738355449946,-500.0,0.00018359,2]
[351148920,1738355449956,-328.88,0.00018493,2]
[351148921,1738355449966,-754.35,0.00018493,2]
[351148922,1738355449975,-500.0,0.00018494,2]
[351148923,1738355449985,-577.36,0.00018494,2]
[351148924,1738355449994,-640.56,0.00018494,2]
[351148925,1738355450003,-151.0,0.00018494,2]
[351148926,1738355450012,-519.66,0.00018494,2]
[351148927,1738355450021,-500.0,0.00018494,2]
[351148928,1738355450030,-500.0,0.00018494,2]
[351148929,1738355450039,-500.0,0.00018494,2]
[351148930,1738355450049,-571.59,0.00018494,2]
[351148931,1738355450057,-500.0,0.00018494,2]
[351148932,1738355450067,-546.31,0.00018494,2]
[351148933,1738355450076,-848.27,0.00018494,2]
[351148934,1738355450086,-793.44,0.00018494,2]
[351148935,1738355450096,-500.0,0.00018494,2]
[351148936,1738355450105,-800.64,0.00018494,2]
[351148937,1738355450114,-500.0,0.00018494,2]
[351148938,1738355450123,-500.0,0.00018494,2]
[351148939,1738355450133,-2583.75,0.00018494,2]
[351148940,1738355450143,-688.18,0.00018494,2]
[351148941,1738355450152,-364.48,0.00018494,2]
[351148942,1738355450161,-500.0,0.00018494,2]
[351148943,1738355450171,-500.0,0.00018495,2]
[351148944,1738355450182,-500.0,0.00018495,2]
[351148945,1738355450192,-500.0,0.00018495,2]
[351148946,1738355450201,-2948.34,0.00018495,2]
[351148947,1738355450211,-185.733639,0.00018495,2]
[351148948,1738355450221,-185.733639,0.00018495,2]
[351148949,1738355450230,-3595.47,0.00018495,2]
[351148950,1738355450240,-570.52,0.00018495,2]
[351148951,1738355450249,-494.16,0.00018495,2]
[351148952,1738355450259,-500.0,0.00018495,2]
[351148953,1738355450268,-500.0,0.00018496,2]
[351148954,1738355450277,-155.51,0.000186,2]
[351148955,1738355450287,-210.85684746,0.00018614,2]
[351148956,1738355450298,-754.35,0.0001863,2]
[351148957,1738355450307,-346.8,0.00018631,2]
[351148958,1738355450317,-640.56,0.00018631,2]
[351148959,1738355450327,-519.66,0.00018631,2]
[351148960,1738355450337,-500.0,0.00018631,2]
[351148961,1738355450348,-151.92,0.00018631,2]
[351148962,1738355450357,-500.0,0.00018631,2]
[351148963,1738355450366,-571.59,0.00018631,2]
[351148964,1738355450376,-522.48,0.00018631,2]
[351148965,1738355450385,-546.31,0.00018631,2]
[351148966,1738355450394,-848.27,0.00018631,2]
[351148967,1738355450404,-793.44,0.00018631,2]
[351148968,1738355450413,-500.0,0.00018631,2]
[351148969,1738355450422,-500.0,0.00018631,2]
[351148970,1738355450430,-800.64,0.00018631,2]
[351148971,1738355450439,-500.0,0.00018631,2]
[351148972,1738355450449,-500.0,0.00018631,2]
[351148973,1738355450459,-2583.75,0.00018631,2]
[351148974,1738355450468,-688.18,0.00018631,2]
[351148975,1738355450478,-500.0,0.00018631,2]
[351148976,1738355450488,-243.92,0.00018632,2]
[351148977,1738355450497,-500.0,0.00018632,2]
[351148978,1738355450506,-600.24,0.00018632,2]
[351148979,1738355450517,-2948.34,0.00018632,2]
[351148980,1738355450528,-3595.47,0.00018632,2]
[351148981,1738355450538,-570.52,0.00018632,2]
[351148982,1738355450549,-500.0,0.00018632,2]
[351148983,1738355450558,-500.0,0.00018633,2]
[351148984,1738355450567,-698.71,0.000187,2]
[351148985,1738355450577,-754.35,0.00018767,2]
[351148986,1738355450586,-640.56,0.00018768,2]
[351148987,1738355450597,-519.66,0.00018768,2]
[351148988,1738355450606,-500.0,0.00018768,2]
[351148989,1738355450615,-500.0,0.00018768,2]
[351148990,1738355450624,-571.59,0.00018768,2]
[351148991,1738355450633,-546.31,0.00018768,2]
[351148992,1738355450642,-848.27,0.00018768,2]
[351148993,1738355450654,-793.44,0.00018768,2]
[351148994,1738355450663,-500.0,0.00018768,2]
[351148995,1738355450672,-800.64,0.00018768,2]
[351148996,1738355450681,-500.0,0.00018768,2]
[351148997,1738355450691,-500.0,0.00018768,2]
[351148998,1738355450701,-2583.75,0.00018768,2]
[351148999,1738355450710,-688.18,0.00018768,2]
[351149000,1738355450719,-500.0,0.00018768,2]
[351149001,1738355450728,-500.0,0.00018769,2]
[351149002,1738355450737,-372.3421,0.00018769,2]
[351149003,1738355450747,-372.3421,0.00018769,2]
[351149004,1738355450756,-151.0,0.00018769,2]
[351149005,1738355450765,-2948.34,0.00018769,2]
[351149006,1738355450774,-3595.47,0.00018769,2]
[351149007,1738355450783,-570.52,0.00018769,2]
[351149008,1738355450793,-500.0,0.00018769,2]
[351149009,1738355450803,-500.0,0.00018769,2]
[351149010,1738355450816,-500.0,0.0001877,2]
[351149011,1738355450825,-203.58985823,0.000189,2]
[351149012,1738355450835,-754.35,0.00018904,2]
[351149013,1738355450845,-640.56,0.00018905,2]
[351149014,1738355450856,-519.66,0.00018905,2]
[351149015,1738355450866,-500.0,0.00018905,2]
[351149016,1738355450875,-171.28,0.00018905,2]
[351149017,1738355450885,-571.59,0.00018905,2]
[351149018,1738355450895,-546.31,0.00018905,2]
[351149019,1738355450904,-848.27,0.00018905,2]
[351149020,1738355450913,-793.44,0.00018905,2]
[351149021,1738355450922,-500.0,0.00018905,2]
[351149022,1738355450931,-800.64,0.00018905,2]
[351149023,1738355450941,-500.0,0.00018905,2]
[351149024,1738355450951,-500.0,0.00018905,2]
[351149025,1738355450960,-2583.75,0.00018905,2]
[351149026,1738355450969,-688.18,0.00018905,2]
[351149027,1738355450979,-500.0,0.00018905,2]
[351149028,1738355450988,-51237.50767519,0.00018906,5]
[351149029,1738355450998,-587.5,0.00018906,2]
[351149030,1738355451008,-2948.34,0.00018906,2]
[351149031,1738355451100,-185.733639,0.00018906,2]
[351149032,1738355451110,-185.733639,0.00018906,2]
[351149033,1738355451119,-3595.47,0.00018906,2]
[351149034,1738355451129,-570.52,0.00018906,2]
[351149035,1738355451138,-500.0,0.00018906,2]
[351149036,1738355451147,-500.0,0.00018907,2]
[351149037,1738355451157,-587.25713284,0.00018964,2]
[351149038,1738355451165,-500.0,0.00018964,2]
[351149039,1738355451175,-500.0,0.00018974,2]
[351149040,1738355451184,-328.49623969,0.00018974,2]
[351149041,1738355451193,-150.0,0.00018975,2]
[351149042,1738355451202,-2043.0,0.00018975,2]
[351149043,1738355451211,-2003.21,0.00018975,2]
[351149044,1738355451221,-395.0,0.00018975,2]
[351149045,1738355451230,-153.996,0.00019,2]
[351149046,1738355451239,-754.35,0.00019041,2]
[351149047,1738355451249,-640.56,0.00019042,2]
[351149048,1738355451258,-519.66,0.00019042,2]
[351149049,1738355451267,-500.0,0.00019042,2]
[351149050,1738355451277,-571.59,0.00019042,2]
[351149051,1738355451286,-546.31,0.00019042,2]
[351149052,1738355451296,-848.27,0.00019042,2]
[351149053,1738355451306,-793.44,0.00019042,2]
[351149054,1738355451315,-562.88,0.00019042,2]
[351149055,1738355451324,-800.64,0.00019042,2]
[351149056,1738355451334,-500.0,0.00019042,2]
[351149057,1738355451343,-500.0,0.00019042,2]
[351149058,1738355451354,-2583.75,0.00019042,2]
[351149059,1738355451364,-688.18,0.00019042,2]
[351149060,1738355451373,-500.0,0.00019042,2]
[351149061,1738355451383,-2948.34,0.00019043,2]
[351149062,1738355451392,-3595.47,0.00019043,2]
[351149063,1738355451402,-570.52,0.00019043,2]
[351149064,1738355451412,-500.0,0.00019043,2]
[351149065,1738355451421,-500.0,0.00019044,2]
[351149066,1738355451431,-500.0,0.00019178,7]
[351149067,1738355451441,-754.35,0.00019178,2]
[351149068,1738355451451,-10164.1174145,0.00019179,5]
[351149069,1738355451460,-640.56,0.00019179,2]
[351149070,1738355451469,-519.66,0.00019179,2]
[351149071,1738355451479,-500.0,0.00019179,2]
[351149072,1738355451488,-571.59,0.00019179,2]
[351149073,1738355451497,-546.31,0.00019179,2]
[351149074,1738355451507,-793.44,0.00019179,2]
[351149075,1738355451516,-848.27,0.00019179,2]
[351149076,1738355451526,-800.64,0.00019179,2]
[351149077,1738355451535,-500.0,0.00019179,2]
[351149078,1738355451545,-500.0,0.00019179,2]
[351149079,1738355451555,-2583.75,0.00019179,2]
[351149080,1738355451565,-688.18,0.00019179,2]
[351149081,1738355451573,-500.0,0.00019179,2]
[351149082,1738355451583,-151.0,0.0001918,2]
[351149083,1738355451592,-2948.34,0.0001918,2]
[351149084,1738355451607,-3595.47,0.0001918,2]
[351149085,1738355451616,-570.52,0.0001918,2]
[351149086,1738355451626,-500.0,0.0001918,2]
[351149087,1738355451635,-500.0,0.00019181,2]
[351149088,1738355451644,-754.35,0.00019315,2]
[351149089,1738355451654,-372.3421,0.00019316,2]
[351149090,1738355451663,-372.3421,0.00019316,2]
[351149091,1738355451672,-640.56,0.00019316,2]
[351149092,1738355451682,-519.66,0.00019316,2]
[351149093,1738355451691,-500.0,0.00019316,2]
[351149094,1738355451700,-571.59,0.00019316,2]
[351149095,1738355451709,-546.31,0.00019316,2]
[351149096,1738355451718,-793.44,0.00019316,2]
[351149097,1738355451727,-848.27,0.00019316,2]
[351149098,1738355451736,-800.64,0.00019316,2]
[351149099,1738355451745,-500.0,0.00019316,2]
[351149100,1738355451754,-500.0,0.00019316,2]
[351149101,1738355451763,-2583.75,0.00019316,2]
[351149102,1738355451772,-688.18,0.00019316,2]
[351149103,1738355451781,-358.53541846,0.00019316,2]
[351149104,1738355451790,-2948.34,0.00019317,2]
[351149105,1738355451799,-185.733639,0.00019317,2]
[351149106,1738355451809,-185.733639,0.00019317,2]
[351149107,1738355451821,-3595.47,0.00019317,2]
[351149108,1738355451830,-570.52,0.00019317,2]
[351149109,1738355451839,-500.0,0.00019317,2]
[351149110,1738355451852,-500.0,0.00019318,2]
[351149111,1738355451862,-210.85684746,0.0001934,2]
[351149112,1738355451877,-7137.18,0.000194,2]
[351149113,1738355451894,-754.35,0.00019452,2]
[351149114,1738355451909,-640.56,0.00019453,2]
[351149115,1738355451922,-519.66,0.00019453,2]
[351149116,1738355451936,-452.64,0.00019453,2]
[351149117,1738355451951,-571.59,0.00019453,2]
[351149118,1738355451965,-546.31,0.00019453,2]
[351149119,1738355451979,-793.44,0.00019453,2]
[351149120,1738355451994,-848.27,0.00019453,2]
[351149121,1738355452008,-800.64,0.00019453,2]
[351149122,1738355452020,-500.0,0.00019453,2]
[351149123,1738355452033,-325.84,0.00019453,2]
[351149124,1738355452047,-2583.75,0.00019453,2]
[351149125,1738355452062,-688.18,0.00019453,2]
[351149126,1738355452074,-2948.34,0.00019454,2]
[351149127,1738355452085,-3595.47,0.00019454,2]
[351149128,1738355452102,-570.52,0.00019454,2]
[351149129,1738355452116,-500.0,0.00019454,2]
[351149130,1738355452129,-591.04,0.00019455,2]
[351149131,1738355452143,-140540.495753,0.000195,2]
[351149132,1738355452158,-741.30962134,0.00019512,2]
[351149133,1738355452174,-500.0,0.00019587,2]
[351149134,1738355452185,-754.35,0.00019589,2]
[351149135,1738355452196,-640.56,0.0001959,2]
[351149136,1738355452208,-519.66,0.0001959,2]
[351149137,1738355452223,-571.59,0.0001959,2]
[351149138,1738355452237,-546.31,0.0001959,2]
[351149139,1738355452248,-793.44,0.0001959,2]
[351149140,1738355452260,-848.27,0.0001959,2]
[351149141,1738355452274,-800.64,0.0001959,2]
[351149142,1738355452286,-498.88,0.0001959,2]
[351149143,1738355452297,-2583.75,0.0001959,2]
[351149144,1738355452309,-688.18,0.0001959,2]
[351149145,1738355452321,-295.495635,0.00019591,2]
[351149146,1738355452335,-2948.34,0.00019591,2]
[351149147,1738355452349,-3595.47,0.00019591,2]
[351149148,1738355452361,-570.52,0.00019591,2]
[351149149,1738355452374,-500.0,0.00019591,2]
[351149150,1738355452386,-500.0,0.00019687,2]
[351149151,1738355452398,-754.35,0.00019726,2]
[351149152,1738355452410,-640.56,0.00019727,2]
[351149153,1738355452422,-519.66,0.00019727,2]
[351149154,1738355452434,-571.59,0.00019727,2]
[351149155,1738355452446,-546.31,0.00019727,2]
[351149156,1738355452457,-793.44,0.00019727,2]
[351149157,1738355452469,-848.27,0.00019727,2]
[351149158,1738355452481,-800.64,0.00019727,2]
[351149159,1738355452493,-2583.75,0.00019727,2]
[351149160,1738355452505,-688.18,0.00019727,2]
[351149161,1738355452517,-372.3421,0.00019728,2]
[351149162,1738355452529,-372.3421,0.00019728,2]
[351149163,1738355452541,-2948.34,0.00019728,2]
[351149164,1738355452552,-3595.47,0.00019728,2]
[351149165,1738355452563,-570.52,0.00019728,2]
[351149166,1738355452575,-500.0,0.00019728,2]
[351149167,1738355452587,-158.11,0.00019785,2]
[351149168,1738355452601,-500.0,0.00019787,2]
[351149169,1738355452613,-185.733639,0.00019828,2]
[351149170,1738355452625,-185.733636,0.00019828,2]
[351149171,1738355452636,-754.35,0.00019863,2]
[351149172,1738355452646,-640.56,0.00019864,2]
[351149173,1738355452656,-519.66,0.00019864,2]
[351149174,1738355452665,-571.59,0.00019864,2]
[351149175,1738355452674,-546.31,0.00019864,2]
[351149176,1738355452683,-793.44,0.00019864,2]
[351149177,1738355452693,-848.27,0.00019864,2]
[351149178,1738355452703,-800.64,0.00019864,2]
[351149179,1738355452714,-2583.75,0.00019864,2]
[351149180,1738355452724,-688.18,0.00019864,2]
[351149181,1738355452733,-2948.34,0.00019865,2]
[351149182,1738355452742,-3595.47,0.00019865,2]
[351149183,1738355452750,-570.52,0.00019865,2]
[351149184,1738355452760,-500.0,0.00019865,2]
[351149185,1738355452769,-500.0,0.00019887,2]
[351149186,1738355452777,-2349.25632482,0.000199,2]
[351149187,1738355452786,-10882.59044237,0.00019922,2]
[351149188,1738355452796,-500.0,0.00019973,2]
[351149189,1738355452806,-500.0,0.00019987,2]
[351149190,1738355452819,-237.61977788,0.00019999,2]
[351149191,1738355452828,-453650.17574708,0.0002,15]
[351149192,1738355452844,-695.44042931,0.0002,15]
[351149193,1738356091565,199.711693,0.00013973,2]
[351149195,1738356427118,-5000.0,0.00016517,2]
[351149196,1738356427143,-469.56918857,0.00017023,2]
[351149197,1738356427169,-500.0,0.00017123,2]
[351149198,1738356427190,-500.0,0.00017125,2]
[351149199,1738356427215,-500.0,0.0001726,2]
[351149200,1738356427238,-300.0,0.00017261,2]
[351149201,1738356427259,-500.0,0.00017262,2]
[351149202,1738356427281,-500.0,0.00017262,2]
[351149203,1738356427305,-500.0,0.00017396,2]
[351149204,1738356427329,-500.0,0.00017396,2]
[351149205,1738356427351,-500.0,0.00017396,2]
[351149206,1738356427375,-500.0,0.00017397,2]
[351149207,1738356427398,-500.0,0.00017397,2]
[351149208,1738356427423,-500.0,0.00017397,2]
[351149209,1738356427455,-1597.45,0.00017397,2]
[351149210,1738356427478,-500.0,0.00017397,2]
[351149211,1738356427503,-500.0,0.00017397,2]
[351149212,1738356427524,-500.0,0.00017397,2]
[351149213,1738356427547,-500.0,0.00017397,2]
[351149214,1738356427571,-500.0,0.00017397,2]
[351149215,1738356427595,-500.0,0.00017397,2]
[351149216,1738356427618,-500.0,0.00017397,2]
[351149217,1738356427641,-500.0,0.00017398,2]
[351149218,1738356427668,-500.0,0.00017398,2]
[351149219,1738356427692,-500.0,0.00017398,2]
[351149220,1738356427714,-500.0,0.00017399,2]
[351149221,1738356427738,-500.0,0.00017533,2]
[351149222,1738356427760,-500.0,0.00017533,2]
[351149223,1738356427783,-500.0,0.00017533,2]
[351149224,1738356427806,-500.0,0.00017534,2]
[351149225,1738356427829,-500.0,0.00017534,2]
[351149226,1738356427853,-500.0,0.00017534,2]
[351149227,1738356427878,-1597.45,0.00017534,2]
[351149228,1738356427902,-500.0,0.00017534,2]
[351149229,1738356427927,-500.0,0.00017534,2]
[351149230,1738356427951,-500.0,0.00017534,2]
[351149231,1738356427975,-500.0,0.00017534,2]
[351149232,1738356428002,-500.0,0.00017534,2]
[351149233,1738356428028,-500.0,0.00017534,2]
[351149234,1738356428050,-500.0,0.00017534,2]
[351149235,1738356428074,-500.0,0.00017535,2]
[351149236,1738356428099,-10.58125071,0.00017535,2]
[351149237,1738356444095,-320.64971113,0.00017398,2]
[351149238,1738356574144,-500.0,0.00017396,2]
[351149239,1738356574174,-500.0,0.00017396,2]
[351149240,1738356574203,-500.0,0.00017396,2]
[351149241,1738356574232,-500.0,0.00017397,2]
[351149242,1738356574258,-500.0,0.00017397,2]
[351149243,1738356574285,-179.35028887,0.00017398,2]
[351149244,1738356574311,-500.0,0.00017398,2]
[351149245,1738356574338,-500.0,0.00017533,2]
[351149246,1738356574364,-500.0,0.00017533,2]
[351149247,1738356574390,-500.0,0.00017533,2]
[351149248,1738356574414,-500.0,0.00017533,2]
[351149249,1738356574441,-500.0,0.00017534,2]
[351149250,1738356574465,-500.0,0.00017534,2]
[351149251,1738356574490,-489.41874929,0.00017535,2]
[351149252,1738356574514,-500.0,0.00017535,2]
[351149253,1738356574539,-365.30238969,0.00017535,2]
[351149302,1738356632211,-486.54,0.00017396,2]
[351149304,1738356632220,-500.0,0.00017397,2]
[351149306,1738356632230,-1464.33,0.00017398,2]
[351149307,1738356632240,-500.0,0.00017398,2]
[351149308,1738356632249,-500.0,0.00017533,2]
[351149309,1738356632261,-500.0,0.00017533,2]
[351149311,1738356632270,-500.0,0.00017534,2]
[351149313,1738356632279,-134.69761031,0.00017535,2]
[351149315,1738356632288,-500.0,0.00017535,2]
[351149316,1738356632297,-1464.33,0.00017535,2]
[351149318,1738356632307,-564.75,0.00017535,2]
[351149320,1738356632316,-601.85,0.00017536,2]
[351149322,1738356632325,-376.0,0.0001767,2]
[351149324,1738356632334,-500.0,0.0001767,2]
[351149325,1738356632343,-500.0,0.0001767,2]
[351149327,1738356632354,-500.0,0.0001767,2]
[351149329,1738356632363,-500.0,0.0001767,2]
[351149331,1738356632372,-500.0,0.00017671,2]
[351149333,1738356632381,-500.0,0.00017671,2]
[351149335,1738356632390,-500.0,0.00017671,2]
[351149337,1738356632399,-639.09,0.00017671,2]
[351149338,1738356632409,-500.0,0.00017671,2]
[351149340,1738356632418,-558.98,0.00017671,2]
[351149342,1738356632427,-401.92,0.00017671,2]
[351149344,1738356632436,-500.0,0.00017671,2]
[351149346,1738356632445,-282.12,0.00017671,2]
[351149347,1738356632454,-500.0,0.00017672,2]
[351149348,1738356632463,-380.38,0.00017672,2]
[351149350,1738356632473,-1464.33,0.00017672,2]
[351149351,1738356632482,-508.08,0.00017807,2]
[351149352,1738356632491,-500.0,0.00017807,2]
[351149354,1738356632501,-263.1,0.00017807,2]
[351149356,1738356632510,-500.0,0.00017807,2]
[351149358,1738356632519,-421.68,0.00017808,2]
[351149359,1738356632529,-500.0,0.00017808,2]
[351149361,1738356632538,-214.77,0.00017808,2]
[351149363,1738356632547,-500.0,0.00017808,2]
[351149365,1738356632556,-500.0,0.00017808,2]
[351149367,1738356632565,-500.0,0.00017809,2]
[351149368,1738356632575,-1464.33,0.00017809,2]
[351149370,1738356632584,-500.0,0.00017925,2]
[351149372,1738356632593,-500.0,0.00017944,2]
[351149373,1738356632602,-500.0,0.00017944,2]
[351149374,1738356632612,-500.0,0.00017945,2]
[351149375,1738356632621,-544.89,0.00017945,2]
[351149376,1738356632630,-329.63807261,0.00017945,2]
[351149377,1738356632642,-170.36192739,0.00017945,2]
[351149378,1738356632651,-500.0,0.00017945,2]
[351149379,1738356632660,-500.0,0.00017946,2]
[351149380,1738356632670,-1464.33,0.00017946,2]
[351149381,1738356632679,-1350.076885,0.00018,3]
[351149382,1738356632689,-500.0,0.00018081,2]
[351149383,1738356632698,-500.0,0.00018081,2]
[351149384,1738356632708,-382.62,0.00018082,2]
[351149385,1738356632717,-500.0,0.00018082,2]
[351149386,1738356632727,-500.0,0.00018082,2]
[351149387,1738356632745,-600.48,0.00018083,2]
[351149388,1738356632755,-1464.33,0.00018083,2]
[351149389,1738356632765,-500.0,0.0001821,2]
[351149390,1738356632774,-500.0,0.00018218,2]
[351149391,1738356632784,-500.0,0.00018218,2]
[351149392,1738356632794,-500.0,0.00018219,2]
[351149393,1738356632803,-500.0,0.00018219,2]
[351149394,1738356632813,-1464.33,0.0001822,2]
[351149395,1738356632822,-152.329,0.00018312,2]
[351149396,1738356632832,-500.0,0.00018355,2]
[351149397,1738356632841,-500.0,0.00018355,2]
[351149398,1738356632851,-500.0,0.00018356,2]
[351149399,1738356632862,-500.0,0.00018356,2]
[351149400,1738356632872,-1464.33,0.00018357,2]
[351149401,1738356632881,-500.0,0.00018473,2]
[351149402,1738356632891,-500.0,0.00018492,2]
[351149403,1738356632900,-500.0,0.00018492,2]
[351149404,1738356632910,-500.0,0.00018493,2]
[351149405,1738356632922,-500.0,0.00018493,2]
[351149406,1738356632931,-1464.33,0.00018494,2]
[351149407,1738356632941,-155.52,0.000186,2]
[351149408,1738356632950,-500.0,0.00018629,2]
[351149409,1738356632959,-451.84,0.00018629,2]
[351149410,1738356632969,-500.0,0.0001863,2]
[351149411,1738356632978,-500.0,0.0001863,2]
[351149412,1738356632989,-1464.33,0.00018631,2]
[351149413,1738356632998,-500.0,0.00018766,2]
[351149414,1738356633007,-500.0,0.00018767,2]
[351149415,1738356633017,-500.0,0.00018767,2]
[351149416,1738356633026,-1464.33,0.00018768,2]
[351149417,1738356633036,-628.84,0.000189,2]
[351149418,1738356633045,-203.58985823,0.000189,2]
[351149419,1738356633055,-500.0,0.00018903,2]
[351149420,1738356633065,-500.0,0.00018904,2]
[351149421,1738356633075,-500.0,0.00018904,2]
[351149422,1738356633084,-1464.33,0.00018905,2]
[351149423,1738356633094,-379.0,0.00019,8]
[351149424,1738356633106,-154.059,0.00019,2]
[351149425,1738356633282,-302.90913937,0.00019,2]
[351149426,1738356633300,-500.0,0.0001904,2]
[351149427,1738356633309,-500.0,0.00019041,2]
[351149428,1738356633319,-500.0,0.00019041,2]
[351149429,1738356633328,-1464.33,0.00019042,2]
[351149430,1738356633338,-500.0,0.00019177,2]
[351149431,1738356633347,-500.0,0.00019178,2]
[351149432,1738356633359,-500.0,0.00019178,2]
[351149433,1738356633368,-162.518657,0.00019178,2]
[351149434,1738356633378,-1464.33,0.00019179,2]
[351149435,1738356633388,-302.90913937,0.0001919,2]
[351149436,1738356633397,-150.0,0.00019275,2]
[351149437,1738356633406,-1007.62358003,0.000193,5]
[351149438,1738356633416,-500.0,0.00019314,2]
[351149439,1738356633425,-500.0,0.00019315,2]
[351149440,1738356633434,-500.0,0.00019315,2]
[351149441,1738356633443,-1464.33,0.00019316,2]
[351149442,1738356633453,-302.90913937,0.0001938,2]
[351149443,1738356633462,-251.28,0.00019451,2]
[351149444,1738356633471,-500.0,0.00019452,2]
[351149445,1738356633481,-500.0,0.00019452,2]
[351149446,1738356633490,-1464.33,0.00019453,2]
[351149447,1738356633499,-302.90913937,0.0001957,2]
[351149448,1738356633509,-500.0,0.00019589,2]
[351149449,1738356633519,-500.0,0.00019589,2]
[351149450,1738356633529,-1464.33,0.0001959,2]
[351149451,1738356633538,-500.0,0.00019726,2]